fUST/lending_fUST_20260120
["ID","MTS","AMOUNT","RATE_DAILY","PERIOD"]
[402767322,1768897838638,-500.0,0.00011481,2]
[402767323,1768897838647,-500.0,0.00011481,2]
[402767324,1768897838655,-500.0,0.00011481,2]
[402767325,1768897838663,-500.0,0.00011481,2]
[402767326,1768897838672,-592.23601872,0.00011481,2]
[402767327,1768897838682,-500.0,0.00011481,2]
[402767328,1768897838692,-500.0,0.00011481,2]
[402767329,1768897838701,-500.0,0.00011481,2]
[402767330,1768897838710,-500.0,0.00011481,2]
[402767331,1768897838720,-500.0,0.00011481,2]
[402767332,1768897838730,-164.70762782,0.00011481,2]
[402767333,1768897838740,-500.0,0.00011481,2]
[402767334,1768897838750,-500.0,0.00011481,2]
[402767335,1768897838759,-500.0,0.00011481,2]
[402767336,1768897838769,-500.0,0.00011481,2]
[402767337,1768897838779,-500.0,0.00011481,2]
[402767338,1768897838788,-500.0,0.00011481,2]
[402767339,1768897838797,-500.0,0.00011481,2]
[402767340,1768897838807,-500.0,0.00011481,2]
[402767341,1768897838817,-500.0,0.00011481,2]
[402767342,1768897838827,-500.0,0.00011481,2]
[402767343,1768897838838,-500.0,0.00011481,2]
[402767344,1768897838847,-500.0,0.00011481,2]
[402767345,1768897838857,-500.0,0.00011481,2]
[402767346,1768897838870,-500.0,0.00011481,2]
[402767347,1768897838880,-500.0,0.00011481,2]
[402767348,1768897838890,-500.0,0.00011481,2]
[402767349,1768897838901,-500.0,0.00011481,2]
[402767350,1768897838911,-500.0,0.00011481,2]
[402767351,1768897838920,-500.0,0.00011481,2]
[402767352,1768897838931,-500.0,0.00011481,2]
[402767353,1768897838941,-500.0,0.00011481,2]
[402767354,1768897838951,-500.0,0.00011481,2]
[402767355,1768897838961,-500.0,0.00011481,2]
[402767356,1768897838971,-500.0,0.00011481,2]
[402767357,1768897838981,-500.0,0.00011481,2]
[402767358,1768897838991,-500.0,0.00011481,2]
[402767359,1768897839001,-500.0,0.00011481,2]
[402767360,1768897839011,-500.0,0.00011481,2]
[402767361,1768897839020,-500.0,0.00011481,2]
[402767362,1768897839031,-550.0,0.00011481,2]
[402767363,1768897839040,-500.0,0.00011481,2]
[402767364,1768897839051,-500.0,0.00011481,2]
[402767365,1768897839062,-500.0,0.00011481,2]
[402767366,1768897839071,-500.0,0.00011481,2]
[402767367,1768897839082,-500.0,0.00011481,2]
[402767368,1768897839092,-500.0,0.00011481,2]
[402767369,1768897839102,-500.0,0.00011481,2]
[402767370,1768897839112,-500.0,0.00011481,2]
[402767371,1768897839122,-500.0,0.00011481,2]
[402767372,1768897839132,-500.0,0.00011481,2]
[402767373,1768897839142,-500.0,0.00011481,2]
[402767374,1768897839152,-500.0,0.00011481,2]
[402767375,1768897839164,-500.0,0.00011481,2]
[402767376,1768897839176,-500.0,0.00011481,2]
[402767377,1768897839185,-500.0,0.00011481,2]
[402767378,1768897839196,-500.0,0.00011481,2]
[402767379,1768897839206,-500.0,0.00011481,2]
[402767380,1768897839216,-500.0,0.00011481,2]
[402767381,1768897839226,-500.0,0.00011481,2]
[402767382,1768897839235,-500.0,0.00011481,2]
[402767383,1768897839245,-500.0,0.00011481,2]
[402767384,1768897839254,-500.0,0.00011481,2]
[402767385,1768897839264,-500.0,0.00011481,2]
[402767386,1768897839274,-500.0,0.00011481,2]
[402767387,1768897839284,-500.0,0.00011481,2]
[402767388,1768897839295,-500.0,0.00011481,2]
[402767389,1768897839304,-500.0,0.00011481,2]
[402767390,1768897839313,-500.0,0.00011481,2]
[402767391,1768897839323,-500.0,0.00011481,2]
[402767392,1768897839332,-500.0,0.00011481,2]
[402767393,1768897839342,-500.0,0.00011481,2]
[402767394,1768897839351,-500.0,0.00011481,2]
[402767395,1768897839360,-500.0,0.00011481,2]
[402767396,1768897839370,-500.0,0.00011481,2]
[402767397,1768897839379,-500.0,0.00011481,2]
[402767398,1768897839388,-500.0,0.00011481,2]
[402767399,1768897839398,-500.0,0.00011481,2]
[402767400,1768897839407,-500.0,0.00011481,2]
[402767401,1768897839416,-500.0,0.00011481,2]
[402767402,1768897839425,-500.0,0.00011481,2]
[402767403,1768897839434,-500.0,0.00011481,2]
[402767404,1768897839444,-500.0,0.00011481,2]
[402767405,1768897839453,-500.0,0.00011481,2]
[402767406,1768897839462,-307.18973643,0.00011481,2]
[402767407,1768897839471,-500.0,0.00011481,2]
[402767408,1768897839480,-500.0,0.00011481,2]
[402767409,1768897839490,-500.0,0.00011481,2]
[402767410,1768897839500,-500.0,0.00011481,2]
[402767411,1768897839509,-500.0,0.00011481,2]
[402767412,1768897839519,-500.0,0.00011481,2]
[402767413,1768897839529,-500.0,0.00011481,2]
[402767414,1768897839538,-500.0,0.00011481,2]
[402767415,1768897839548,-500.0,0.00011481,2]
[402767416,1768897839557,-500.0,0.00011481,2]
[402767417,1768897839566,-500.0,0.00011481,2]
[402767418,1768897839575,-500.0,0.00011481,2]
[402767420,1768897839585,-500.0,0.00011481,2]
[402767421,1768897839595,-500.0,0.00011481,2]
[402767422,1768897839604,-500.0,0.00011481,2]
[402767423,1768897839614,-500.0,0.00011481,2]
[402767424,1768897839623,-500.0,0.00011481,2]
[402767425,1768897839633,-500.0,0.00011481,2]
[402767426,1768897839643,-556.9639102,0.00011481,2]
[402767427,1768897839652,-500.0,0.00011481,2]
[402767428,1768897839662,-500.0,0.00011481,2]
[402767429,1768897839671,-500.0,0.00011481,2]
[402767430,1768897839681,-500.0,0.00011481,2]
[402767431,1768897839690,-500.0,0.00011481,2]
[402767432,1768897839700,-500.0,0.00011481,2]
[402767433,1768897839710,-500.0,0.00011481,2]
[402767434,1768897839719,-500.0,0.00011481,2]
[402767435,1768897839728,-500.0,0.00011481,2]
[402767436,1768897839738,-500.0,0.00011481,2]
[402767437,1768897839747,-500.0,0.00011481,2]
[402767438,1768897839756,-500.0,0.00011481,2]
[402767439,1768897839766,-500.0,0.00011481,2]
[402767440,1768897839776,-500.0,0.00011481,2]
[402767441,1768897839784,-550.0,0.00011481,2]
[402767442,1768897839794,-1002.83270186,0.00011482,2]
[402767443,1768897839804,-50000.0,0.00011482,2]
[402767444,1768897839813,-500.0,0.00011484,2]
[402767445,1768897839822,-1368.0,0.00011486,2]
[402767446,1768897839832,-2148.0,0.00011486,2]
[402767447,1768897839841,-417.0,0.00011486,2]
[402767448,1768897839850,-178.0,0.00011486,2]
[402767449,1768897839862,-243.43,0.000115,3]
[402767450,1768897839872,-500.0,0.00011758,2]
[402767451,1768897839881,-2054.42429808,0.0001191,2]
[402767452,1768897839890,-500.0,0.00012032,2]
[402767453,1768897839902,-1957.856,0.00012182,2]
[402767454,1768897839911,-151.0,0.00012182,2]
[402767455,1768897839921,-250.0,0.00012182,2]
[402767456,1768897839931,-151.0,0.00012182,2]
[402767457,1768897839942,-250.0,0.00012182,2]
[402767458,1768897839952,-445.202766,0.00012182,2]
[402767459,1768897839961,-151.0,0.00012182,2]
[402767460,1768897839971,-151.0,0.00012182,2]
[402767461,1768897839980,-250.0,0.00012182,2]
[402767462,1768897839989,-151.0,0.00012182,2]
[402767463,1768897839998,-151.0,0.00012182,2]
[402767464,1768897840008,-250.0,0.00012182,2]
[402767465,1768897840017,-151.0,0.00012182,2]
[402767466,1768897840027,-2000.0,0.00012182,2]
[402767467,1768897840036,-151.0,0.00012182,2]
[402767468,1768897840045,-250.0,0.00012182,2]
[402767469,1768897840054,-151.0,0.00012182,2]
[402767470,1768897840064,-2000.0,0.00012182,2]
[402767471,1768897840073,-151.0,0.00012182,2]
[402767472,1768897840083,-250.0,0.00012182,2]
[402767473,1768897840092,-250.0,0.00012182,2]
[402767474,1768897840101,-151.0,0.00012182,2]
[402767475,1768897840111,-2000.0,0.00012182,2]
[402767476,1768897840121,-151.0,0.00012182,2]
[402767477,1768897840130,-250.0,0.00012182,2]
[402767478,1768897840139,-151.0,0.00012182,2]
[402767479,1768897840148,-2000.0,0.00012182,2]
[402767480,1768897840158,-151.0,0.00012182,2]
[402767481,1768897840167,-254.68214382,0.00012182,2]
[402767482,1768897840177,-250.0,0.00012182,2]
[402767483,1768897840186,-151.0,0.00012182,2]
[402767484,1768897840197,-2000.0,0.00012182,2]
[402767485,1768897840207,-151.0,0.00012182,2]
[402767486,1768897840216,-250.0,0.00012182,2]
[402767487,1768897840225,-151.0,0.00012182,2]
[402767488,1768897840235,-2000.0,0.00012182,2]
[402767489,1768897840244,-151.0,0.00012182,2]
[402767490,1768897840254,-151.0,0.00012182,2]
[402767491,1768897840263,-250.0,0.00012182,2]
[402767492,1768897840273,-2000.0,0.00012182,2]
[402767493,1768897840283,-151.0,0.00012182,2]
[402767494,1768897840292,-151.0,0.00012182,2]
[402767495,1768897840302,-218.0,0.00012182,2]
[402767496,1768897840311,-2000.0,0.00012182,2]
[402767497,1768897840321,-151.0,0.00012182,2]
[402767499,1768897840331,-159.52416229,0.00012182,2]
[402767501,1768897840501,-2000.0,0.00012182,2]
[402767502,1768897840511,-151.0,0.00012182,2]
[402767503,1768897840520,-151.0,0.00012182,2]
[402767504,1768897840530,-2000.0,0.00012182,2]
[402767505,1768897840539,-1234.81663869,0.00012182,2]
[402767506,1768897840548,-151.0,0.00012182,2]
[402767507,1768897840558,-980.86195064,0.00012182,2]
[402767508,1768897840567,-151.0,0.00012182,2]
[402767509,1768897840576,-243.22730364,0.00012182,2]
[402767510,1768897840585,-172.55917765,0.00012182,2]
[402767511,1768897840595,-151.0,0.00012182,2]
[402767512,1768897840604,-162.380719,0.00012182,2]
[402767513,1768897840615,-168.3888056,0.00012182,2]
[402767514,1768897840623,-174.61919141,0.00012182,2]
[402767515,1768897840633,-181.08010149,0.00012182,2]
[402767516,1768897840642,-187.78006525,0.00012182,2]
[402767517,1768897840651,-194.72792766,0.00012182,2]
[402767518,1768897840661,-201.93286099,0.00012182,2]
[402767519,1768897840670,-151.0,0.00012182,2]
[402767520,1768897840679,-209.40437684,0.00012182,2]
[402767521,1768897840689,-151.0,0.00012182,2]
[402767522,1768897840698,-217.15233878,0.00012182,2]
[402767523,1768897840708,-151.0,0.00012182,2]
[402767524,1768897840718,-225.18697532,0.00012182,2]
[402767525,1768897840727,-151.0,0.00012182,2]
[402767526,1768897840736,-233.51889341,0.00012182,2]
[402767527,1768897840745,-242.15909246,0.00012182,2]
[402767528,1768897840755,-151.0,0.00012182,2]
[402767529,1768897840764,-151.0,0.00012182,2]
[402767530,1768897840773,-251.11897888,0.00012182,2]
[402767531,1768897840783,-260.4103811,0.00012182,2]
[402767532,1768897840792,-244.66931704,0.00012182,2]
[402767533,1768897840801,-270.0455652,0.00012182,2]
[402767534,1768897840810,-280.03725112,0.00012182,2]
[402767535,1768897840820,-290.39862941,0.00012182,2]
[402767536,1768897840829,-301.1433787,0.00012182,2]
[402767537,1768897840839,-151.0,0.00012182,2]
[402767538,1768897840848,-151.0,0.00012182,2]
[402767539,1768897840858,-151.0,0.00012182,2]
[402767540,1768897840870,-151.0,0.00012182,2]
[402767541,1768897840880,-151.0,0.00012182,2]
[402767542,1768897840889,-151.0,0.00012182,2]
[402767543,1768897840899,-151.0,0.00012182,2]
[402767544,1768897840909,-151.0,0.00012182,2]
[402767545,1768897840919,-2150.738,0.00012182,2]
[402767546,1768897840928,-162.380719,0.00012182,2]
[402767547,1768897840940,-2030.296672,0.00012237,2]
[402767548,1768897840949,-2105.41764886,0.00012292,2]
[402767549,1768897840959,-500.0,0.00012306,2]
[402767550,1768897840968,-404.04,0.00012329,2]
[402767551,1768897840977,-336.7,0.00012329,2]
[402767552,1768897840986,-280.58,0.00012329,2]
[402767553,1768897840995,-233.82,0.00012329,2]
[402767554,1768897841005,-194.85,0.00012329,2]
[402767555,1768897841015,-162.37,0.00012329,2]
[402767557,1768897841024,-162.37,0.00012329,2]
[402767558,1768897841033,-649.51,0.00012329,2]
[402767559,1768897841043,-194.026,0.00012329,2]
[402767561,1768897841053,-2183.31810187,0.00012347,2]
[402767562,1768897841063,-2264.10087164,0.00012402,2]
[402767564,1768897841072,-2054.42429808,0.00012438,2]
[402767565,1768897841082,-2347.87260389,0.00012457,2]
[402767566,1768897841091,-8140.17278055,0.000125,2]
[402767567,1768897841101,-2434.74389024,0.00012512,2]
[402767568,1768897841110,-2802.0,0.00012559,2]
[402767569,1768897841120,-2524.82941417,0.00012567,2]
[402767570,1768897841129,-2802.0,0.00012579,2]
[402767571,1768897841139,-502.89555556,0.0001258,2]
[402767572,1768897841148,-2802.0,0.00012608,2]
[402767573,1768897841158,-420.0,0.0001261,2]
[402767574,1768897841167,-420.0,0.0001261,2]
[402767575,1768897841177,-2618.2481025,0.00012622,2]
[402767576,1768897841186,-946.0,0.00012629,2]
[402767577,1768897841196,-2715.12328229,0.00012677,2]
[402767578,1768897841205,-1041.66666667,0.00012695,2]
[402767579,1768897841215,-461.67526834,0.0001273,2]
[402767580,1768897841225,-151.0,0.0001273,2]
[402767581,1768897841234,-2230.315306,0.0001273,2]
[402767582,1768897841244,-2815.58284374,0.00012732,2]
[402767583,1768897841253,-2802.0,0.00012743,2]
[402767584,1768897841263,-2919.75940895,0.00012787,2]
[402767585,1768897841272,-2802.0,0.00012796,2]
[402767586,1768897841282,-3027.79050709,0.00012842,2]
[402767587,1768897841291,-2802.0,0.00012845,2]
[402767588,1768897841301,-2802.0,0.00012853,2]
[402767589,1768897841310,-3139.81875585,0.00012897,2]
[402767590,1768897841320,-725.21291254,0.000129,2]
[402767591,1768897841329,-2900.85165014,0.000129,2]
[402767592,1768897841338,-4273.95876533,0.000129,2]
[402767593,1768897841348,-2802.0,0.00012941,2]
[402767594,1768897841357,-3255.99204981,0.00012952,2]
[402767595,1768897841367,-2802.0,0.00012956,2]
[402767596,1768897841375,-2054.42429808,0.00012966,2]
[402767597,1768897841385,-2802.0,0.00012981,2]
[402767598,1768897841394,-3376.46375566,0.00013007,2]
[402767599,1768897841404,-2802.0,0.00013054,2]
[402767600,1768897841413,-3501.39291462,0.00013062,2]
[402767601,1768897841423,-302.94753262,0.00013094,2]
[402767602,1768897841432,-3630.94445245,0.00013117,2]
[402767603,1768897841442,-2802.0,0.00013123,2]
[402767604,1768897841451,-842.34257378,0.00013123,2]
[402767605,1768897841461,-2802.0,0.00013138,2]
[402767606,1768897841470,-2802.0,0.00013144,2]
[402767607,1768897841479,-171.73,0.00013272,2]
[402767608,1768897841488,-440.05898548,0.00013273,2]
[402767609,1768897841499,-150.7468441,0.00013273,2]
[402767610,1768897841508,-500.0,0.00013273,2]
[402767611,1768897841517,-500.0,0.00013273,2]
[402767612,1768897841526,-500.0,0.00013273,2]
[402767613,1768897841535,-500.0,0.00013273,2]
[402767614,1768897841544,-500.0,0.00013273,2]
[402767615,1768897841554,-478.75725327,0.00013278,2]
[402767616,1768897841564,-219.28089817,0.00013278,2]
[402767617,1768897841574,-2312.83697232,0.00013278,2]
[402767618,1768897841583,-500.0,0.00013288,2]
[402767619,1768897841592,-500.0,0.00013288,2]
[402767620,1768897841602,-500.0,0.00013288,2]
[402767621,1768897841611,-500.0,0.00013288,2]
[402767622,1768897841621,-500.0,0.00013288,2]
[402767623,1768897841630,-500.0,0.00013288,2]
[402767624,1768897841639,-500.0,0.00013288,2]
[402767625,1768897841650,-500.0,0.00013288,2]
[402767626,1768897841659,-500.0,0.00013288,2]
[402767627,1768897841668,-500.0,0.00013288,2]
[402767628,1768897841679,-500.0,0.00013288,2]
[402767629,1768897841690,-500.0,0.00013288,2]
[402767630,1768897841700,-500.0,0.00013288,2]
[402767631,1768897841709,-500.0,0.00013288,2]
[402767632,1768897841718,-193.882904,0.00013288,2]
[402767633,1768897841728,-500.0,0.00013288,2]
[402767634,1768897841739,-500.0,0.00013288,2]
[402767635,1768897841748,-2802.0,0.000133,2]
[402767636,1768897841757,-2802.0,0.00013368,2]
[402767637,1768897841766,-2018.8017679,0.00013406,2]
[402767638,1768897841775,-153.27960824,0.00013424,2]
[402767639,1768897841785,-500.0,0.00013424,2]
[402767640,1768897841795,-173.91486518,0.00013424,2]
[402767641,1768897841806,-500.0,0.00013425,2]
[402767642,1768897841815,-500.0,0.00013425,2]
[402767643,1768897841826,-500.0,0.00013425,2]
[402767644,1768897841837,-500.0,0.00013425,2]
[402767645,1768897841848,-500.0,0.00013425,2]
[402767646,1768897841866,-500.0,0.00013425,2]
[402767647,1768897841878,-500.0,0.00013425,2]
[402767648,1768897841887,-500.0,0.00013425,2]
[402767649,1768897841897,-500.0,0.00013425,2]
[402767650,1768897841908,-500.0,0.00013425,2]
[402767651,1768897841917,-246.880399,0.00013425,2]
[402767652,1768897841930,-500.0,0.00013425,2]
[402767653,1768897841942,-500.0,0.00013425,2]
[402767654,1768897841952,-500.0,0.00013425,2]
[402767655,1768897841961,-500.0,0.00013425,2]
[402767656,1768897841969,-500.0,0.00013425,2]
[402767657,1768897841978,-500.0,0.00013425,2]
[402767658,1768897841987,-2802.0,0.00013458,2]
[402767659,1768897841996,-2802.0,0.00013459,2]
[402767660,1768897842006,-158.07638638,0.00013479,2]
[402767661,1768897842016,-2054.42429808,0.00013494,2]
[402767662,1768897842026,-2802.0,0.00013499,2]
[402767663,1768897842035,-151.0,0.000135,2]
[402767664,1768897842045,-3490.4531047,0.00013541,2]
[402767665,1768897842056,-171.73,0.00013545,2]
[402767666,1768897842067,-168.3888056,0.00013551,2]
[402767667,1768897842076,-500.0,0.00013561,2]
[402767668,1768897842085,-500.0,0.00013562,2]
[402767669,1768897842094,-500.0,0.00013562,2]
[402767670,1768897842103,-500.0,0.00013562,2]
[402767671,1768897842113,-500.0,0.00013562,2]
[402767672,1768897842123,-500.0,0.00013562,2]
[402767673,1768897842132,-500.0,0.00013562,2]
[402767674,1768897842142,-500.0,0.00013562,2]
[402767675,1768897842151,-262.46505496,0.00013562,2]
[402767676,1768897842160,-500.0,0.00013562,2]
[402767677,1768897842170,-500.0,0.00013562,2]
[402767678,1768897842180,-500.0,0.00013562,2]
[402767679,1768897842190,-500.0,0.00013562,2]
[402767680,1768897842200,-500.0,0.00013562,2]
[402767681,1768897842210,-500.0,0.00013562,2]
[402767682,1768897842219,-500.0,0.00013562,2]
[402767683,1768897842230,-500.0,0.00013562,2]
[402767684,1768897842240,-15018.09995458,0.00013566,2]
[402767685,1768897842250,-1000000.0,0.00013594,2]
[402767686,1768897842260,-151.0,0.00013594,2]
[402767689,1768897842270,-1009.473721,0.00013594,2]
[402767690,1768897842280,-1009.473721,0.00013594,2]
[402767691,1768897842291,-1009.473721,0.00013594,2]
[402767692,1768897842301,-1009.473721,0.00013594,2]
[402767693,1768897842311,-9502.01666217,0.00013599,2]
[402767695,1768897842321,-151.0,0.000136,2]
[402767696,1768897842331,-151.0,0.000136,2]
[402767697,1768897842340,-151.0,0.000136,2]
[402767698,1768897842350,-151.0,0.000136,2]
[402767699,1768897842359,-151.0,0.000136,2]
[402767700,1768897842368,-151.0,0.000136,2]
[402767701,1768897842378,-151.0,0.000136,2]
[402767702,1768897842387,-151.0,0.000136,2]
[402767704,1768897842396,-151.0,0.000136,2]
[402767705,1768897842406,-151.0,0.000136,2]
[402767706,1768897842415,-158.07638638,0.00013616,2]
[402767707,1768897842424,-300.0,0.00013673,2]
[402767708,1768897842434,-2802.0,0.00013679,2]
[402767709,1768897842444,-475.0,0.0001368,2]
[402767710,1768897842453,-475.0,0.0001368,2]
[402767711,1768897842463,-475.0,0.0001368,2]
[402767713,1768897842473,-20894.81387087,0.00013694,3]
[402767714,1768897842483,-10667.38433349,0.00013694,2]
[402767715,1768897842493,-154.62335951,0.00013698,2]
[402767717,1768897842502,-500.0,0.00013698,2]
[402767720,1768897842512,-475.0,0.00013698,2]
[402767723,1768897842521,-306.382019,0.00013698,2]
[402767726,1768897842531,-306.382019,0.00013698,2]
[402767729,1768897842540,-306.382019,0.00013698,2]
[402767732,1768897842549,-306.382019,0.00013698,2]
[402767735,1768897842558,-500.0,0.00013698,2]
[402767738,1768897842567,-500.0,0.00013698,2]
[402767740,1768897842577,-500.0,0.00013698,2]
[402767742,1768897842587,-500.0,0.00013698,2]
[402767744,1768897842596,-500.0,0.00013698,2]
[402767745,1768897842605,-623.47227119,0.00013698,2]
[402767747,1768897842614,-500.0,0.00013698,2]
[402767749,1768897842623,-500.0,0.00013698,2]
[402767751,1768897842632,-500.85241185,0.00013698,2]
[402767753,1768897842643,-526.74,0.00013698,2]
[402767754,1768897842652,-526.74,0.00013698,2]
[402767755,1768897842662,-526.74,0.00013698,2]
[402767756,1768897842671,-526.74,0.00013698,2]
[402767757,1768897842680,-526.74,0.00013698,2]
[402767758,1768897842690,-526.74,0.00013698,2]
[402767759,1768897842699,-526.74,0.00013698,2]
[402767761,1768897842708,-526.74,0.00013698,2]
[402767763,1768897842718,-526.74,0.00013698,2]
[402767764,1768897842728,-526.74,0.00013698,2]
[402767765,1768897842737,-526.74,0.00013698,2]
[402767766,1768897842747,-526.74,0.00013698,2]
[402767767,1768897842756,-526.74,0.00013698,2]
[402767768,1768897842765,-526.74,0.00013698,2]
[402767769,1768897842774,-526.74,0.00013698,2]
[402767770,1768897842783,-526.74,0.00013698,2]
[402767771,1768897842792,-526.74,0.00013698,2]
[402767772,1768897842802,-526.74,0.00013698,2]
[402767773,1768897842812,-526.74,0.00013698,2]
[402767774,1768897842823,-526.74,0.00013698,2]
[402767775,1768897842832,-526.74,0.00013698,2]
[402767776,1768897842843,-526.74,0.00013698,2]
[402767777,1768897842852,-526.74,0.00013698,2]
[402767778,1768897842866,-526.79481557,0.00013698,2]
[402767779,1768897842876,-500.0,0.00013698,2]
[402767780,1768897842887,-500.0,0.00013698,2]
[402767781,1768897842899,-500.0,0.00013698,2]
[402767782,1768897842908,-500.0,0.00013698,2]
[402767783,1768897842918,-500.0,0.00013698,2]
[402767784,1768897842929,-500.0,0.00013698,2]
[402767785,1768897842939,-500.0,0.00013698,2]
[402767786,1768897842949,-500.0,0.00013698,2]
[402767787,1768897842958,-500.0,0.00013698,2]
[402767788,1768897842968,-500.0,0.00013698,2]
[402767789,1768897842978,-500.0,0.00013698,2]
[402767790,1768897842987,-311.98170642,0.00013698,2]
[402767791,1768897842997,-517.3835177,0.00013698,2]
[402767792,1768897843007,-290.31345,0.00013698,2]
[402767793,1768897843016,-507.19470404,0.00013698,2]
[402767794,1768897843026,-2263.97,0.00013698,2]
[402767795,1768897843035,-2263.97,0.00013698,2]
[402767796,1768897843045,-2263.97,0.00013698,2]
[402767797,1768897843054,-2263.97,0.00013698,2]
[402767798,1768897843063,-2263.97,0.00013698,2]
[402767799,1768897843073,-2263.97,0.00013698,2]
[402767800,1768897843083,-2263.97,0.00013698,2]
[402767801,1768897843094,-2263.97,0.00013698,2]
[402767802,1768897843104,-2263.97,0.00013698,2]
[402767803,1768897843115,-2263.97,0.00013698,2]
[402767804,1768897843125,-2263.97,0.00013698,2]
[402767805,1768897843135,-2263.97,0.00013698,2]
[402767806,1768897843145,-2263.97,0.00013698,2]
[402767807,1768897843154,-2263.97,0.00013698,2]
[402767808,1768897843163,-2263.97,0.00013698,2]
[402767809,1768897843173,-2263.97,0.00013698,2]
[402767810,1768897843182,-2263.97,0.00013698,2]
[402767811,1768897843191,-2263.97,0.00013698,2]
[402767812,1768897843201,-2263.97,0.00013698,2]
[402767813,1768897843210,-2263.97,0.00013698,2]
[402767814,1768897843220,-2263.97,0.00013698,2]
[402767815,1768897843232,-2263.97,0.00013698,2]
[402767816,1768897843242,-2263.97,0.00013698,2]
[402767817,1768897843251,-2264.20929649,0.00013698,2]
[402767818,1768897843260,-500.0,0.00013698,2]
[402767819,1768897843271,-549.7845155,0.00013698,2]
[402767820,1768897843280,-1768.41,0.00013698,2]
[402767821,1768897843290,-1768.41,0.00013698,2]
[402767822,1768897843299,-1768.41,0.00013698,2]
[402767823,1768897843308,-1768.41,0.00013698,2]
[402767824,1768897843317,-1768.41,0.00013698,2]
[402767825,1768897843326,-1768.41,0.00013698,2]
[402767826,1768897843335,-1768.41,0.00013698,2]
[402767827,1768897843344,-1768.41,0.00013698,2]
[402767828,1768897843353,-1768.41,0.00013698,2]
[402767829,1768897843362,-1768.41,0.00013698,2]
[402767830,1768897843370,-1768.41,0.00013698,2]
[402767831,1768897843378,-1768.41,0.00013698,2]
[402767832,1768897843386,-1768.41,0.00013698,2]
[402767833,1768897843394,-1768.41,0.00013698,2]
[402767834,1768897843403,-1768.41,0.00013698,2]
[402767835,1768897843411,-1768.41,0.00013698,2]
[402767836,1768897843420,-1768.41,0.00013698,2]
[402767837,1768897843429,-1768.41,0.00013698,2]
[402767838,1768897843437,-1768.41,0.00013698,2]
[402767839,1768897843447,-1768.41,0.00013698,2]
[402767840,1768897843456,-1768.41,0.00013698,2]
[402767841,1768897843465,-1768.41,0.00013698,2]
[402767842,1768897843475,-1768.41,0.00013698,2]
[402767843,1768897843484,-1768.6044418,0.00013698,2]
[402767844,1768897843493,-1009.473721,0.00013698,2]
[402767845,1768897843502,-1009.473721,0.00013698,2]
[402767846,1768897843511,-1009.473721,0.00013698,2]
[402767847,1768897843521,-1009.473721,0.00013698,2]
[402767848,1768897843531,-1009.473721,0.00013698,2]
[402767849,1768897843540,-1009.473721,0.00013698,2]
[402767850,1768897843549,-1009.473721,0.00013698,2]
[402767851,1768897843558,-1009.473721,0.00013698,2]
[402767852,1768897843568,-1398.49,0.00013698,2]
[402767853,1768897843577,-1398.49,0.00013698,2]
[402767854,1768897843586,-1398.49,0.00013698,2]
[402767855,1768897843596,-1398.49,0.00013698,2]
[402767856,1768897843605,-1398.49,0.00013698,2]